[Event "Allsvenskan Div I 3 2023/2024: SS Manhem - Thunder Chess"]
[Site "Goteborgs schackcentrum, Vegatan 20, Gothenburg, Sweden"]
[Date "2024.01.14"]
[Round "1.6"]
[White "Fendrich, David"]
[Black "Sigurgeirson, Brjann"]
[Result "1-0"]
[TimeControl "90 minutes for 40 moves + 30 minutes for the rest of the game + 30 seconds per move from move one."]
[WhiteFideId "1705725"]
[BlackFideId "1712497"]
[WhiteElo "2162"]
[BlackElo "2149"]

1. g3 {[%clk 01:30:54]} {[%emt 00:00:06]} Nf6 {[%clk 01:30:40]} {[%emt
00:00:21]} 2. Bg2 {[%clk 01:31:13]} {[%emt 00:00:11]} g6 {[%clk 01:30:58]}
{[%emt 00:00:12]} 3. c4 {[%clk 01:31:26]} {[%emt 00:00:17]} c5 {[%clk
01:31:15]} {[%emt 00:00:13]} 4. Nc3 {[%clk 01:31:47]} {[%emt 00:00:09]} Bg7
{[%clk 01:31:37]} {[%emt 00:00:08]} 5. a3 {[%clk 01:28:38]} {[%emt 00:03:39]}
Nc6 {[%clk 01:29:28]} {[%emt 00:02:39]} 6. Rb1 {[%clk 01:28:09]} {[%emt
00:00:59]} a5 {[%clk 01:25:05]} {[%emt 00:04:53]} 7. d3 {[%clk 01:24:20]}
{[%emt 00:04:19]} O-O {[%clk 01:22:31]} {[%emt 00:03:04]} 8. Nh3 {[%clk
01:23:29]} {[%emt 00:01:20]} d6 {[%clk 01:13:36]} {[%emt 00:09:25]} 9. Nf4
{[%clk 01:23:20]} {[%emt 00:00:39]} Rb8 {[%clk 00:55:23]} {[%emt 00:18:43]} 10.
O-O {[%clk 01:22:38]} {[%emt 00:01:11]} e6 {[%clk 00:50:18]} {[%emt 00:05:35]}
11. h4 {[%clk 01:13:05]} {[%emt 00:10:03]} Ne7 {[%clk 00:46:19]} {[%emt
00:04:29]} 12. b4 {[%clk 01:09:33]} {[%emt 00:04:02]} e5 {[%clk 00:31:26]}
{[%emt 00:15:24]} 13. Nfd5 {[%clk 01:06:40]} {[%emt 00:03:22]} Nfxd5 {[%clk
00:29:43]} {[%emt 00:02:13]} 14. Nxd5 {[%clk 01:04:02]} {[%emt 00:03:08]} Nxd5
{[%clk 00:27:55]} {[%emt 00:02:19]} 15. Bxd5 {[%clk 01:04:16]} {[%emt
00:00:16]} Bh3 {[%clk 00:28:04]} {[%emt 00:00:21]} 16. Re1 {[%clk 01:03:44]}
{[%emt 00:01:01]} axb4 {[%clk 00:19:24]} {[%emt 00:09:11]} 17. axb4 {[%clk
01:02:41]} {[%emt 00:01:33]} b6 {[%clk 00:19:12]} {[%emt 00:00:43]} 18. Qa4
{[%clk 00:51:32]} {[%emt 00:11:38]} Be6 {[%clk 00:13:33]} {[%emt 00:06:09]} 19.
Qc6 {[%clk 00:38:20]} {[%emt 00:13:42]} Rc8 {[%clk 00:04:49]} {[%emt 00:09:14]}
20. Bg5 {[%clk 00:37:10]} {[%emt 00:01:40]} Qc7 {[%clk 00:04:17]} {[%emt
00:01:03]} 21. Qxc7 {[%clk 00:23:18]} {[%emt 00:14:22]} Rxc7 {[%clk 00:04:46]}
{[%emt 00:00:01]} 22. bxc5 {[%clk 00:18:51]} {[%emt 00:04:57]} bxc5 {[%clk
00:05:04]} {[%emt 00:00:11]} 23. Bg2 {[%clk 00:15:59]} {[%emt 00:03:21]} h6
{[%clk 00:04:36]} {[%emt 00:00:59]} 24. Bd2 {[%clk 00:15:42]} {[%emt 00:00:47]}
Rfc8 {[%clk 00:02:11]} {[%emt 00:02:55]} 25. Rb6 {[%clk 00:15:25]} {[%emt
00:00:47]} Bf8 {[%emt 00:02:18]} 26. Ra1 {[%clk 00:13:45]} Rd7 {[%clk
00:01:49]} {[%emt 00:01:13]} 27. Raa6 {[%clk 00:10:48]} {[%emt 00:03:27]} Rdd8
{[%clk 00:01:20]} {[%emt 00:00:59]} 28. Ba5 {[%clk 00:09:47]} {[%emt 00:01:31]}
d5 {[%clk 00:00:46]} {[%emt 00:01:05]} 29. Rxe6 {[%clk 00:07:09]} {[%emt
00:03:08]} fxe6 {[%clk 00:01:09]} {[%emt 00:00:07]} 30. Bxd8 {[%clk 00:07:33]}
{[%emt 00:00:06]} Rxd8 {[%clk 00:01:13]} {[%emt 00:00:26]} 31. Rxe6 {[%clk
00:06:52]} {[%emt 00:01:11]} dxc4 {[%clk 00:00:35]} {[%emt 00:01:09]} 32. dxc4
{[%clk 00:07:09]} {[%emt 00:00:14]} Rd1+ {[%clk 00:00:37]} {[%emt 00:00:27]} 33.
Kh2 {[%clk 00:07:24]} {[%emt 00:00:15]} Bg7 {[%clk 00:01:04]} {[%emt 00:00:03]}
34. Rxg6 {[%clk 00:07:10]} {[%emt 00:00:44]} Rd2 {[%clk 00:01:13]} {[%emt
00:00:21]} 35. Bf3 {[%clk 00:05:05]} {[%emt 00:02:35]} Kf7 {[%clk 00:00:35]}
{[%emt 00:01:09]} 36. Bh5 {[%clk 00:03:59]} {[%emt 00:01:36]} Kg8 {[%clk
00:01:04]} 37. Rc6 {[%clk 00:03:23]} {[%emt 00:01:06]} Bf8 {[%clk 00:01:33]}
{[%emt 00:00:01]} 38. Kg2 {[%clk 00:01:58]} {[%emt 00:01:55]} Rc2 {[%clk
00:01:44]} {[%emt 00:00:20]} 39. Rc7 {[%clk 00:01:48]} {[%emt 00:00:40]} Kh8
{[%clk 00:01:15]} {[%emt 00:00:59]} 40. Rc8 {[%clk 00:00:44]} {[%emt 00:01:34]}
Kg7 {[%clk 00:01:37]} {[%emt 00:00:05]} 41. Re8 {[%clk 00:25:42]} {[%emt
00:05:34]} Rxc4 {[%clk 00:30:00]} {[%emt 00:02:08]} 42. Rxe5 {[%clk 00:25:55]}
{[%emt 00:00:16]} Kf6 {[%clk 00:29:33]} {[%emt 00:00:57]} 43. f4 {[%clk
00:23:52]} {[%emt 00:02:33]} Rc1 {[%clk 00:28:25]} {[%emt 00:01:38]} 44. Re8
{[%clk 00:22:07]} {[%emt 00:02:16]} Kg7 {[%clk 00:25:42]} {[%emt 00:03:12]} 45.
Rc8 {[%clk 00:19:34]} {[%emt 00:03:02]} c4 {[%clk 00:26:02]} {[%emt 00:00:11]}
46. Rc7+ {[%clk 00:19:32]} {[%emt 00:00:32]} Kh8 {[%clk 00:24:26]} {[%emt
00:02:06]} 47. Kf3 {[%clk 00:15:10]} {[%emt 00:04:51]} c3 {[%clk 00:20:59]}
{[%emt 00:03:59]} 48. Bg6 {[%clk 00:14:32]} {[%emt 00:01:06]} Bb4 {[%clk
00:21:02]} {[%emt 00:00:28]} 49. Kg4 {[%clk 00:12:32]} {[%emt 00:02:30]} Rg1
{[%clk 00:18:27]} {[%emt 00:03:05]} 50. e4 {[%clk 00:10:51]} {[%emt 00:02:11]}
c2 {[%emt 00:01:18]} 51. Rxc2 {[%clk 00:11:03]} {[%emt 00:00:15]} Be1 {[%clk
00:18:11]} {[%emt 00:00:02]} 52. e5 {[%clk 00:04:04]} {[%emt 00:07:29]} h5+
{[%clk 00:16:04]} {[%emt 00:02:37]} 53. Bxh5 {[%clk 00:02:30]} {[%emt
00:02:04]} Rxg3+ {[%clk 00:15:38]} {[%emt 00:00:56]} 54. Kf5 {[%clk 00:02:53]}
{[%emt 00:00:07]} Rg8 {[%clk 00:14:56]} {[%emt 00:01:12]} 55. Bf7 {[%clk
00:02:41]} {[%emt 00:00:42]} Rg7 {[%clk 00:13:37]} {[%emt 00:01:49]} 56. e6
{[%clk 00:01:50]} {[%emt 00:01:21]} Bxh4 {[%clk 00:13:52]} {[%emt 00:00:16]} 57.
Rh2 {[%clk 00:01:58]} {[%emt 00:00:21]} Rh7 {[%clk 00:14:16]} {[%emt 00:00:06]}
58. Rxh4 {[%clk 00:01:17]} {[%emt 00:01:12]} 1-0

[ePGN "0.1;DGT LiveChess/2.2.6"]

[Event "Allsvenskan Div I 3 2023/2024: SS Manhem - Thunder Chess"]
[Site "Goteborgs schackcentrum, Vegatan 20, Gothenburg, Sweden"]
[Date "2024.01.14"]
[Round "1.7"]
[White "Zachrisson, Mattias"]
[Black "Bengtsson, Jonas"]
[Result "0-1"]
[TimeControl "90 minutes for 40 moves + 30 minutes for the rest of the game + 30 seconds per move from move one."]
[WhiteFideId "1708384"]
[BlackFideId "1715135"]
[WhiteElo "2075"]
[BlackElo "2000"]

1. e4 {[%clk 01:30:59]} {[%emt 00:00:01]} c5 {[%clk 01:30:55]} {[%emt
00:00:05]} 2. Nf3 {[%clk 01:31:25]} {[%emt 00:00:04]} e6 {[%clk 01:31:20]}
{[%emt 00:00:05]} 3. d3 {[%clk 01:31:51]} {[%emt 00:00:05]} Nc6 {[%clk
01:31:45]} {[%emt 00:00:04]} 4. g3 {[%clk 01:32:12]} {[%emt 00:00:10]} d5
{[%clk 01:32:07]} {[%emt 00:00:07]} 5. Nbd2 {[%clk 01:32:36]} {[%emt 00:00:06]}
Bd6 {[%clk 01:32:31]} {[%emt 00:00:05]} 6. Bg2 {[%clk 01:32:59]} {[%emt
00:00:08]} Nge7 {[%clk 01:32:56]} {[%emt 00:00:05]} 7. Nh4 {[%clk 01:31:19]}
{[%emt 00:02:10]} O-O {[%clk 01:26:18]} {[%emt 00:07:08]} 8. f4 {[%clk
01:31:04]} {[%emt 00:00:46]} f5 {[%clk 01:24:47]} {[%emt 00:02:00]} 9. O-O
{[%clk 01:24:05]} {[%emt 00:07:29]} Bc7 {[%clk 01:17:24]} {[%emt 00:07:52]} 10.
e5 {[%clk 01:19:37]} {[%emt 00:04:59]} b5 {[%clk 01:12:00]} {[%emt 00:05:54]}
11. c3 {[%clk 01:12:52]} {[%emt 00:07:16]} a5 {[%clk 01:11:32]} {[%emt
00:00:56]} 12. a4 {[%clk 01:00:07]} {[%emt 00:13:15]} bxa4 {[%clk 01:02:49]}
{[%emt 00:09:13]} 13. Qxa4 {[%clk 00:51:37]} {[%emt 00:09:01]} Ba6 {[%clk
01:00:46]} {[%emt 00:02:32]} 14. Qc2 {[%clk 00:50:35]} {[%emt 00:01:32]} Qd7
{[%clk 00:57:52]} {[%emt 00:03:23]} 15. Rd1 {[%clk 00:45:44]} {[%emt 00:05:22]}
Bb6 {[%clk 00:53:18]} {[%emt 00:05:03]} 16. Nhf3 {[%clk 00:44:58]} {[%emt
00:01:17]} Bxd3 {[%clk 00:52:41]} {[%emt 00:01:08]} 17. Qa4 {[%clk 00:43:52]}
{[%emt 00:01:35]} c4+ {[%clk 00:51:15]} {[%emt 00:01:56]} 18. Kh1 {[%clk
00:44:05]} {[%emt 00:00:17]} Bf2 {[%clk 00:47:24]} {[%emt 00:04:21]} 19. Nf1
{[%clk 00:39:39]} {[%emt 00:04:56]} Rfb8 {[%clk 00:43:18]} {[%emt 00:04:36]} 20.
Rd2 {[%clk 00:35:47]} {[%emt 00:04:22]} Bc5 {[%clk 00:41:17]} {[%emt 00:02:30]}
21. Ne1 {[%clk 00:33:45]} {[%emt 00:02:33]} Bxf1 {[%clk 00:38:32]} {[%emt
00:03:14]} 22. Bxf1 {[%clk 00:34:11]} {[%emt 00:00:04]} Be3 {[%clk 00:36:26]}
{[%emt 00:02:36]} 23. Re2 {[%clk 00:34:23]} {[%emt 00:00:17]} Bxc1 {[%clk
00:36:49]} {[%emt 00:00:07]} 24. Rxc1 {[%clk 00:34:48]} {[%emt 00:00:05]} Rb3
{[%clk 00:36:31]} {[%emt 00:00:48]} 25. Ra1 {[%clk 00:30:14]} {[%emt 00:05:05]}
Rab8 {[%clk 00:35:29]} {[%emt 00:01:31]} 26. Ra2 {[%clk 00:29:10]} {[%emt
00:01:35]} Nc8 {[%clk 00:31:23]} {[%emt 00:04:36]} 27. Ra1 {[%clk 00:28:55]}
{[%emt 00:00:45]} Rxb2 {[%clk 00:29:46]} {[%emt 00:02:07]} 28. Nf3 {[%clk
00:28:54]} {[%emt 00:00:31]} Rxe2 {[%clk 00:24:45]} {[%emt 00:05:30]} 29. Bxe2
{[%clk 00:29:22]} {[%emt 00:00:03]} Rb2 {[%clk 00:23:58]} {[%emt 00:01:16]} 30.
Bd1 {[%clk 00:28:37]} {[%emt 00:01:15]} N8e7 {[%clk 00:18:04]} {[%emt
00:06:23]} 31. Nd4 {[%clk 00:16:15]} {[%emt 00:12:53]} Qa7 {[%clk 00:14:33]}
{[%emt 00:04:01]} 32. Qa3 {[%clk 00:13:52]} {[%emt 00:02:54]} Nxd4 {[%clk
00:04:20]} {[%emt 00:10:43]} 33. Qxb2 {[%clk 00:13:53]} {[%emt 00:00:28]} Ndc6
{[%clk 00:04:47]} {[%emt 00:00:03]} 34. Qe2 {[%clk 00:03:36]} {[%emt 00:10:47]}
Qc5 {[%clk 00:04:39]} {[%emt 00:00:38]} 35. Rc1 {[%clk 00:02:38]} {[%emt
00:01:29]} h6 {[%clk 00:04:51]} {[%emt 00:00:18]} 36. Kg2 {[%clk 00:03:05]}
{[%emt 00:00:04]} Kh7 {[%clk 00:05:04]} {[%emt 00:00:16]} 37. h4 {[%clk
00:02:19]} {[%emt 00:01:16]} Na7 {[%clk 00:03:10]} {[%emt 00:02:23]} 38. h5
{[%clk 00:02:28]} {[%emt 00:00:23]} Nb5 {[%clk 00:03:31]} {[%emt 00:00:07]} 39.
Ba4 {[%clk 00:02:05]} {[%emt 00:00:54]} Qa3 {[%clk 00:03:23]} {[%emt 00:00:38]}
40. Qc2 {[%clk 00:02:19]} {[%emt 00:00:16]} Nxc3 {[%clk 00:02:47]} {[%emt
00:01:05]} 41. Qxc3 {[%clk 00:01:22]} {[%emt 00:01:28]} Qxa4 {[%clk 00:03:09]}
{[%emt 00:00:07]} 42. Ra1 {[%clk 00:01:06]} {[%emt 00:00:46]} Qb4 {[%clk
00:03:30]} {[%emt 00:00:09]} 43. Qc2 {[%clk 00:26:01]} {[%emt 00:05:35]} Nc6
{[%clk 00:31:04]} {[%emt 00:02:56]} 44. Rb1 {[%clk 00:23:58]} {[%emt 00:02:34]}
Qc5 {[%clk 00:28:44]} {[%emt 00:02:49]} 45. g4 {[%clk 00:21:20]} {[%emt
00:03:09]} d4 {[%clk 00:26:24]} {[%emt 00:02:49]} 46. gxf5 {[%clk 00:17:14]}
{[%emt 00:04:36]} d3 {[%clk 00:26:47]} {[%emt 00:00:07]} 47. Qd2 {[%clk
00:13:35]} {[%emt 00:04:09]} Qd5+ {[%clk 00:26:53]} {[%emt 00:00:24]} 48. Kg3
{[%clk 00:11:39]} {[%emt 00:02:27]} exf5 {[%clk 00:27:14]} {[%emt 00:00:08]} 49.
Rd1 {[%clk 00:03:19]} {[%emt 00:08:51]} Nd4 {[%clk 00:27:18]} {[%emt 00:00:25]}
50. Qe3 {[%clk 00:02:59]} {[%emt 00:00:50]} Qe4 {[%clk 00:24:25]} {[%emt
00:03:23]} 51. Kf2 {[%clk 00:02:04]} {[%emt 00:01:26]} Nc2 {[%clk 00:24:14]}
{[%emt 00:00:41]} 52. Qb6 {[%clk 00:01:06]} {[%emt 00:01:28]} Qxf4+ {[%clk
00:24:34]} {[%emt 00:00:09]} 53. Kg2 {[%clk 00:01:35]} {[%emt 00:00:02]} Ne3+
{[%clk 00:24:48]} {[%emt 00:00:16]} 0-1

[ePGN "0.1;DGT LiveChess/2.2.6"]

[Event "Allsvenskan Div I 3 2023/2024: SS Manhem - Thunder Chess"]
[Site "Goteborgs schackcentrum, Vegatan 20, Gothenburg, Sweden"]
[Date "2024.01.14"]
[Round "1.8"]
[White "Karlsson, Stefan"]
[Black "Lehtonen, Ture"]
[Result "1-0"]
[TimeControl "90 minutes for 40 moves + 30 minutes for the rest of the game + 30 seconds per move from move one."]
[WhiteFideId "1771183"]
[BlackFideId "1712446"]
[WhiteElo "1964"]
[BlackElo "2107"]

1. e4 {[%clk 01:30:55]} {[%emt 00:00:03]} d6 {[%clk 01:30:39]} {[%emt
00:00:21]} 2. d4 {[%clk 01:31:17]} {[%emt 00:00:08]} Nf6 {[%clk 01:31:03]}
{[%emt 00:00:06]} 3. Nc3 {[%clk 01:31:42]} {[%emt 00:00:05]} c6 {[%clk
01:31:12]} {[%emt 00:00:21]} 4. Be3 {[%clk 01:31:58]} {[%emt 00:00:14]} Qb6
{[%clk 01:31:03]} {[%emt 00:00:39]} 5. Rb1 {[%clk 01:26:22]} {[%emt 00:06:05]}
Ng4 {[%clk 01:28:44]} {[%emt 00:02:49]} 6. Bg5 {[%clk 01:23:06]} {[%emt
00:03:47]} h6 {[%clk 01:24:02]} {[%emt 00:05:12]} 7. Bh4 {[%clk 01:23:18]}
{[%emt 00:00:18]} g5 {[%clk 01:23:48]} {[%emt 00:00:44]} 8. Be2 {[%clk
01:17:38]} {[%emt 00:06:09]} Nf6 {[%clk 01:24:16]} {[%emt 00:00:03]} 9. Bg3
{[%clk 01:17:40]} {[%emt 00:00:28]} Bg7 {[%clk 01:24:26]} {[%emt 00:00:18]} 10.
h4 {[%clk 01:09:08]} {[%emt 00:09:03]} Nbd7 {[%clk 01:19:44]} {[%emt 00:05:12]}
11. hxg5 {[%clk 01:06:27]} {[%emt 00:03:12]} hxg5 {[%clk 01:19:59]} {[%emt
00:00:15]} 12. Rxh8+ {[%clk 01:06:52]} {[%emt 00:00:05]} Bxh8 {[%clk 01:20:22]}
{[%emt 00:00:07]} 13. Bc4 {[%clk 00:56:03]} {[%emt 00:11:19]} Qb4 {[%clk
00:47:21]} {[%emt 00:33:31]} 14. Qd3 {[%clk 00:51:38]} {[%emt 00:04:54]} d5
{[%clk 00:27:01]} {[%emt 00:20:50]} 15. exd5 {[%clk 00:51:53]} {[%emt
00:00:16]} cxd5 {[%clk 00:27:13]} {[%emt 00:00:19]} 16. Bxd5 {[%clk 00:38:01]}
{[%emt 00:14:21]} Nxd5 {[%clk 00:20:13]} {[%emt 00:07:30]} 17. a3 {[%clk
00:38:25]} {[%emt 00:00:07]} Qxd4 {[%clk 00:17:54]} {[%emt 00:02:48]} 18. Nxd5
{[%clk 00:34:30]} {[%emt 00:04:25]} Qxd3 {[%clk 00:16:35]} {[%emt 00:01:48]} 19.
cxd3 {[%clk 00:31:47]} {[%emt 00:03:12]} Kf8 {[%clk 00:14:35]} {[%emt
00:02:31]} 20. Nc7 {[%clk 00:22:26]} {[%emt 00:09:50]} Rb8 {[%clk 00:14:48]}
{[%emt 00:00:18]} 21. Nb5 {[%clk 00:22:27]} {[%emt 00:00:29]} Ra8 {[%clk
00:14:28]} {[%emt 00:00:52]} 22. d4 {[%clk 00:17:05]} {[%emt 00:05:51]} a6
{[%clk 00:09:30]} {[%emt 00:05:28]} 23. Nc7 {[%clk 00:17:24]} {[%emt 00:00:11]}
Ra7 {[%clk 00:09:55]} {[%emt 00:00:04]} 24. Rc1 {[%clk 00:10:05]} {[%emt
00:07:48]} Nb6 {[%clk 00:04:58]} {[%emt 00:05:29]} 25. Nd5 {[%clk 00:10:07]}
{[%emt 00:00:28]} Nxd5 {[%clk 00:05:07]} {[%emt 00:00:22]} 26. Rxc8+ {[%clk
00:10:29]} {[%emt 00:00:07]} Kg7 {[%clk 00:05:31]} {[%emt 00:00:06]} 27. Bb8
{[%clk 00:10:50]} {[%emt 00:00:09]} Ra8 {[%clk 00:05:39]} {[%emt 00:00:23]} 28.
Be5+ {[%clk 00:11:07]} {[%emt 00:00:12]} f6 {[%clk 00:06:06]} {[%emt 00:00:02]}
29. Rxa8 {[%clk 00:11:28]} {[%emt 00:00:10]} fxe5 {[%clk 00:06:28]} {[%emt
00:00:08]} 30. dxe5 {[%clk 00:10:20]} {[%emt 00:01:37]} Kh7 {[%clk 00:06:31]}
{[%emt 00:00:28]} 31. Nf3 {[%clk 00:10:41]} {[%emt 00:00:09]} 1-0